bitfinex/quotes_ETHUSD_20241108
["timestamp","ask_amount","ask_price","bid_price","bid_amount"]
[1731025651967,0.7528,2947.4,2946.1,3.98089546]
[1731025651968,0.08482751,2947.3,2946.1,3.98089546]
[1731025652166,0.08482751,2947.3,2945.9,0.42020455]
[1731025652167,0.7761,2947.2,2945.9,0.42020455]
[1731025652372,0.7761,2947.0,2945.9,0.51539]
[1731025653160,0.7761,2947.0,2945.9,1.01169483]
[1731025653570,0.7761,2947.0,2945.9,0.51539]
[1731025654261,0.7761,2947.0,2945.9,1.01169483]
[1731025654457,0.7761,2947.0,2946.0,0.40116948]
[1731025654691,0.7693,2946.8,2946.0,0.49630483]
[1731025654872,0.85414602,2946.7,2945.3,3.98089546]
[1731025655206,0.85414602,2946.7,2944.9,0.42020455]
[1731025655207,0.86414602,2946.7,2945.1,0.49630483]
[1731025655407,0.87414602,2946.7,2944.9,4.40110001]
[1731025655983,0.01,2946.4,2944.9,3.98089546]
[1731025656296,0.7811,2946.3,2944.9,4.37898501]
[1731025656517,0.7811,2946.1,2944.9,3.98089546]
[1731025656733,0.01,2946.4,2944.9,3.98089546]
[1731025656734,0.86597251,2946.0,2944.9,3.98089546]
[1731025658189,0.86597251,2946.0,2944.5,3.98089546]
[1731025658190,0.87597251,2946.0,2944.5,3.98089546]
[1731025658417,0.7811,2945.8,2944.1,3.98089546]
[1731025658616,0.08488588,2945.7,2944.2,0.39808955]
[1731025658926,0.7811,2945.6,2944.2,0.39808955]
[1731025659282,0.86598794,2945.5,2944.3,0.4378985]
[1731025659401,0.86598794,2945.5,2944.3,0.50580885]
[1731025659601,0.86598794,2945.5,2944.3,0.9260134]
[1731025660207,0.86598794,2945.5,2944.4,0.39260134]
[1731025660542,0.86598794,2945.5,2944.1,3.98089546]
[1731025661133,0.86598794,2945.5,2944.5,3.98089546]
[1731025661291,0.7811,2945.5,2944.9,3.98089546]
[1731025663461,0.7811,2945.5,2945.0,0.06789582]
[1731025663663,0.7811,2945.5,2945.1,0.49903007]
[1731025664157,0.7811,2945.5,2945.2,0.0678938]
[1731025664458,0.7811,2945.5,2945.1,0.49903007]
[1731025666362,0.7713,2946.4,2945.4,3.0]
[1731025666646,0.7713,2946.4,2946.2,3.98089546]
[1731025666822,0.7713,2947.4,2946.3,0.49630483]
[1731025667158,0.7713,2947.2,2945.9,3.0]
[1731025667317,0.7713,2947.2,2945.8,3.98089546]
[1731025667318,0.7713,2947.0,2945.8,3.98089546]
[1731025667512,0.09483927,2947.1,2945.4,3.98089546]
[1731025667513,0.7713,2946.8,2945.4,3.98089546]
[1731025667751,0.7713,2946.6,2945.4,3.98089546]
[1731025668027,0.7713,2946.4,2945.4,3.98089546]
[1731025668355,0.7713,2946.2,2945.0,3.98089546]
[1731025668559,0.0848689,2946.1,2945.1,0.06789512]
[1731025669417,0.0848689,2946.1,2945.1,0.56419995]
[1731025669613,0.0848689,2946.1,2945.2,0.49630483]
[1731025669940,0.0848689,2946.1,2945.3,0.06789506]
[1731025672131,0.7713,2946.2,2945.3,0.56419989]
[1731025672321,0.7713,2946.2,2945.3,0.96514033]
[1731025672521,0.7713,2946.2,2945.4,4.47720029]
[1731025672754,0.7713,2946.2,2945.5,0.06788582]
[1731025673062,0.7914,2946.7,2945.6,0.06788323]
[1731025673225,0.7914,2946.7,2945.8,3.98089546]
[1731025674133,0.7914,2946.7,2945.4,3.98089546]
[1731025674334,0.8081,2946.5,2945.5,3.0]
[1731025674771,0.8081,2946.5,2945.4,3.98089546]
[1731025675067,0.7899,2946.3,2945.4,3.98089546]
[1731025675265,0.08486145,2946.2,2945.4,3.98089546]
[1731025675564,0.7899,2946.3,2945.5,0.06788916]
[1731025675870,0.7899,2946.3,2945.5,3.49630483]
[1731025676167,0.01,2947.2,2945.5,3.49630483]
[1731025676168,0.8011,2946.6,2945.9,3.0]
[1731025676334,0.8011,2946.6,2946.0,0.69808955]
[1731025677368,0.8202,2946.4,2945.5,3.0]
[1731025677531,0.08486141,2946.3,2945.5,3.0]
[1731025677731,0.08486141,2946.3,2945.6,0.0678891]
[1731025678185,0.8202,2946.4,2945.6,0.0678891]
[1731025678354,0.8202,2946.4,2945.6,0.77276756]
[1731025678690,0.8202,2946.9,2945.9,3.0]
[1731025678852,0.08484235,2946.8,2945.9,3.0]
[1731025679641,0.8202,2946.9,2945.9,3.0]
[1731025679979,0.8202,2946.9,2946.0,0.69808955]
[1731025681979,0.19181329,2947.8,2946.0,0.69808955]
[1731025681980,0.7743,2947.2,2946.6,3.98089546]
[1731025682168,0.7743,2947.2,2946.7,0.06786011]
[1731025682477,0.7743,2947.2,2946.6,4.47720029]
[1731025682783,0.7743,2947.2,2946.7,0.56416381]
[1731025682937,0.7743,2947.2,2946.3,3.0]
[1731025683137,0.01,2947.5,2946.2,3.98089546]
[1731025683138,0.08483998,2947.1,2946.2,3.98089546]
[1731025683336,0.8163,2947.4,2946.3,0.06787195]
[1731025683572,0.90113987,2947.3,2946.3,0.06787195]
[1731025683873,0.90113987,2947.3,2946.3,0.47274869]
[1731025684771,0.8158,2946.9,2945.3,3.98089546]
[1731025684975,0.8058,2946.7,2945.3,3.98089546]
[1731025685159,0.8058,2946.5,2945.3,3.98089546]
[1731025685364,0.08485884,2946.4,2945.4,0.47819955]
[1731025685752,0.7917,2946.3,2945.3,3.98089546]
[1731025685951,0.7917,2946.1,2945.2,0.8011]
[1731025686155,0.7917,2946.1,2945.3,0.06789373]
[1731025686776,0.7917,2946.1,2945.3,0.06789372]
[1731025687680,0.7917,2946.1,2945.4,0.49630483]
[1731025687884,0.7917,2946.1,2945.5,0.49224048]
[1731025688045,0.7917,2947.1,2945.7,3.98089546]
[1731025688381,0.7917,2947.1,2945.8,0.49630483]
[1731025688382,0.55,2946.8,2945.8,0.49630483]
[1731025688565,0.55,2946.8,2945.7,3.98089546]
[1731025688756,0.7917,2946.7,2945.7,3.98089546]
[1731025689575,0.7917,2946.7,2945.7,4.47272951]
[1731025691189,0.7917,2946.7,2946.1,3.98089546]
[1731025691786,0.7917,2946.7,2945.7,0.49183405]
[1731025691982,0.7917,2946.7,2945.5,0.81]
[1731025692166,0.7917,2946.7,2945.6,0.06788001]
[1731025692478,0.7917,2946.7,2945.5,0.81]
[1731025692657,0.7917,2946.7,2945.6,0.06787701]
[1731025693349,0.7917,2946.7,2945.5,3.81]
[1731025693677,0.7917,2946.7,2945.6,0.77908955]
[1731025695484,0.7917,2946.7,2945.8,3.98089546]
[1731025697481,0.01,2946.3,2945.4,0.39405397]
[1731025697657,0.7913,2946.0,2944.3,4.77139546]
[1731025697863,0.7913,2945.9,2945.1,0.06790204]
[1731025698482,0.7913,2945.9,2945.1,4.0487975]
[1731025698691,0.7913,2945.9,2945.1,4.48801018]
[1731025698846,0.7913,2945.9,2945.0,1.35986737]
[1731025700365,0.86427345,2945.8,2945.0,1.35986737]
[1731025700888,0.7794,2945.8,2945.1,0.06789873]
[1731025701060,0.7794,2945.8,2945.0,1.35986737]
[1731025701702,0.8304,2946.5,2945.1,4.87888772]
[1731025701903,0.91526392,2946.4,2945.2,0.66779678]
[1731025702213,0.8304,2946.4,2945.3,0.06789113]
[1731025702364,0.8304,2946.4,2945.3,0.50710381]
[1731025702780,0.8304,2946.4,2945.3,0.43921268]
[1731025702980,0.8304,2946.4,2945.4,0.41070095]
[1731025703203,0.8304,2946.4,2945.4,0.84991363]
[1731025703500,0.8304,2946.4,2945.4,0.41070095]
[1731025704602,0.8304,2946.4,2945.5,0.06788809]
[1731025704908,0.8304,2946.4,2945.4,0.41070095]
[1731025705277,0.08486009,2946.3,2945.4,0.41070095]
[1731025705478,0.768,2946.3,2945.5,0.06789245]
[1731025705686,0.768,2946.3,2945.4,0.41070095]
[1731025706503,0.768,2946.3,2945.5,0.06788435]
[1731025706828,0.768,2946.3,2945.4,0.84991363]
[1731025707479,0.768,2946.3,2945.5,0.06788433]
[1731025707674,0.768,2946.3,2945.4,0.43921268]
[1731025707980,0.768,2946.3,2945.2,0.66779678]
[1731025708180,0.768,2946.3,2944.8,0.48720205]
[1731025708181,1.46045597,2946.2,2944.8,0.48720205]
[1731025708377,1.46045597,2946.2,2944.9,0.06789814]
[1731025708378,0.8256,2945.9,2944.9,0.06789814]
[1731025708622,0.8256,2945.9,2945.1,3.98089546]
[1731025708826,0.8256,2945.9,2945.2,0.54750846]
[1731025708983,0.8256,2945.9,2945.2,0.98672114]
[1731025709379,0.8256,2945.9,2945.2,3.98672114]
[1731025709611,0.8256,2945.9,2945.2,0.47961955]
[1731025709881,0.8256,2945.9,2944.7,4.20679017]
[1731025710127,0.02,2946.4,2944.7,0.48702568]
[1731025710128,0.7554,2945.7,2944.7,0.48702568]
[1731025710310,0.01,2946.2,2944.7,0.48702568]
[1731025710311,0.7554,2945.5,2944.7,0.48702568]
[1731025710822,0.7554,2945.5,2944.3,3.23271598]
[1731025711025,0.55,2945.4,2944.4,0.3232716]
[1731025711323,0.7864,2945.1,2943.7,4.46923887]
[1731025711621,0.8147,2944.9,2943.8,0.0679184]
[1731025711781,0.89960866,2944.8,2943.8,0.54846928]
[1731025712437,0.89960866,2944.8,2943.8,0.0679184]
[1731025712579,0.89960866,2944.8,2943.4,0.06792853]
[1731025713425,0.8147,2944.8,2943.7,3.98219036]
[1731025713579,0.8147,2944.8,2943.8,3.06792214]
[1731025713917,0.8147,2944.8,2943.9,0.70501125]
[1731025714080,0.8147,2944.8,2944.2,3.0]
[1731025714696,0.8147,2944.8,2944.0,0.46337935]
[1731025714894,0.8147,2944.8,2943.8,3.0]
[1731025715120,0.8147,2944.8,2943.9,0.06792015]
[1731025716630,0.8147,2944.8,2943.9,0.5312995]
[1731025716793,0.8147,2944.8,2944.0,0.39207877]
[1731025716990,0.8147,2944.8,2944.1,0.06792153]
[1731025717892,0.8147,2944.8,2944.1,0.53130088]
[1731025718300,0.8147,2944.8,2944.2,0.46337935]
[1731025719309,0.85660503,2944.7,2943.1,0.88161968]
[1731025719533,0.85660503,2944.7,2943.3,0.64010516]
[1731025719934,0.85660503,2944.7,2943.3,0.17812277]
[1731025720310,0.85660503,2944.7,2943.1,1.34417071]
[1731025720513,0.85660503,2944.7,2943.1,4.73822468]
[1731025721722,0.85660503,2944.7,2943.1,5.12737273]
[1731025721900,0.85660503,2944.7,2943.1,4.73822468]
[1731025723047,0.85660503,2944.7,2943.2,0.8720415]
[1731025723201,0.85660503,2944.7,2943.1,4.73822468]
[1731025723202,0.7509,2944.3,2943.1,1.34417071]
[1731025723403,0.01,2944.4,2943.1,0.48756571]
[1731025723404,0.7509,2944.1,2943.1,0.48756571]
[1731025723639,0.7509,2943.9,2943.1,0.48756571]
[1731025723839,0.7509,2943.9,2943.0,0.7509]
[1731025726341,0.8093,2943.7,2942.7,0.38924077]
[1731025726655,0.8093,2943.5,2942.8,0.0679503]
[1731025727004,0.8168,2944.1,2943.0,3.98219036]
[1731025727204,0.8168,2943.9,2943.0,3.98219036]
[1731025727516,0.8168,2943.9,2942.7,4.14911904]
[1731025727729,0.8168,2943.9,2942.8,0.81313094]
[1731025728242,0.8168,2943.9,2942.8,0.88107499]
[1731025728446,0.8168,2943.9,2942.8,0.81313094]
[1731025728740,0.8168,2943.9,2942.9,0.06794404]
[1731025729637,0.8168,2943.9,2943.5,3.0]
[1731025729940,0.8168,2943.9,2943.6,0.65997387]
[1731025730347,0.8168,2943.9,2943.5,0.38924077]
[1731025730503,0.8168,2943.9,2943.1,3.38924077]
[1731025731216,0.8168,2943.9,2943.1,0.38924077]
[1731025731421,0.8168,2943.9,2942.8,4.05094489]
[1731025731726,0.8168,2943.9,2942.9,3.45640309]
[1731025732052,0.8168,2943.9,2942.9,3.84564386]
[1731025733254,0.09492147,2944.4,2942.9,3.84564386]
[1731025733255,0.08492687,2943.8,2942.9,0.84564386]
[1731025733460,0.7595,2943.8,2942.9,0.38924077]
[1731025733665,0.7595,2943.6,2942.7,0.7509]
[1731025733821,0.01,2944.1,2942.7,0.7509]
[1731025734019,7.38017217,2945.4,2943.3,3.23781395]
[1731025734266,3.73801722,2945.3,2943.3,3.23781395]
[1731025735527,0.55,2945.2,2943.3,3.23781395]
[1731025736523,0.55,2945.2,2943.3,3.62705472]
[1731025737163,0.55,2945.0,2943.3,3.62705472]
[1731025737463,0.55,2944.4,2943.3,0.38973005]
[1731025737667,0.55,2944.2,2943.0,0.38973005]
[1731025737964,0.55,2944.2,2942.8,0.38973005]
[1731025737965,0.7999,2943.9,2942.8,0.38973005]
[1731025738128,0.7999,2943.7,2942.9,0.38973005]
[1731025738340,0.7999,2943.7,2942.7,1.1507714]
[1731025738341,0.7999,2943.7,2943.0,0.45768261]
[1731025738535,0.7999,2943.7,2943.1,3.627544]
[1731025738733,0.7999,2943.7,2943.2,0.79825271]
[1731025738955,0.7999,2943.7,2943.4,0.01]
[1731025739163,0.7999,2945.1,2943.8,0.01]
[1731025739368,0.7999,2945.1,2943.9,3.627544]
[1731025739576,0.7999,2945.1,2944.0,0.38973005]
[1731025739748,0.7999,2945.1,2944.1,0.38973005]
[1731025739950,0.7999,2945.1,2944.2,0.38973005]
[1731025740284,0.7999,2945.1,2943.9,0.38973005]
[1731025740635,0.55,2944.8,2943.9,0.38973005]
[1731025740859,0.7728,2944.7,2944.0,0.38973005]
[1731025741061,0.7728,2944.7,2944.1,0.38973005]
[1731025741261,0.7728,2944.7,2944.2,0.38973005]
[1731025741469,0.55,2945.0,2943.2,0.86301476]
[1731025741470,0.7759,2944.5,2943.8,0.38973005]
[1731025741678,0.7759,2944.5,2943.9,0.38973005]
[1731025741841,0.7759,2944.5,2943.2,3.42852266]
[1731025741842,0.7759,2944.5,2944.0,0.38973005]
[1731025742039,0.7759,2944.5,2944.1,0.38973005]
[1731025742246,0.7759,2944.5,2944.2,0.38973005]
[1731025742454,0.7759,2944.5,2944.3,0.38973005]
[1731025742656,0.7759,2944.5,2943.6,0.38973005]
[1731025742841,0.7759,2944.5,2943.7,0.38973005]
[1731025743043,0.7759,2944.5,2943.8,0.39118007]
[1731025743451,0.7759,2944.5,2943.9,0.39118007]
[1731025743746,0.7759,2944.5,2944.0,0.39118007]
[1731025743944,0.7759,2944.5,2944.1,0.39118007]
[1731025744268,0.7759,2944.5,2944.2,0.4591109]
[1731025744450,0.7759,2944.5,2944.3,0.39118007]
[1731025744775,0.7759,2944.5,2944.4,0.39118007]
[1731025745077,0.7539,2945.2,2944.4,0.39118007]
[1731025745278,0.7539,2945.2,2944.5,0.39118007]
[1731025745583,0.7539,2945.2,2944.6,0.39118007]
[1731025745751,0.55,2945.1,2944.7,0.39118007]
[1731025745953,0.8035,2945.0,2944.0,0.39118007]
[1731025746164,0.8035,2945.0,2944.1,0.39118007]
[1731025746544,0.8035,2945.0,2944.2,0.39121295]
[1731025746953,0.8035,2945.0,2943.9,3.0]
[1731025746954,0.8035,2945.0,2944.3,0.39121295]
[1731025747285,0.8035,2945.0,2944.4,0.45913518]
[1731025747457,0.8035,2945.0,2944.5,0.39121295]
[1731025747788,0.8035,2945.0,2944.6,0.45912526]
[1731025747960,0.8035,2945.0,2944.7,0.39121295]
[1731025748277,0.8035,2945.0,2944.8,0.39121295]
[1731025748457,0.8035,2945.0,2944.5,0.39121295]
[1731025748663,0.8035,2945.0,2944.6,0.39121295]
[1731025748954,0.8035,2945.0,2944.2,0.01]
[1731025749151,0.8035,2945.0,2944.3,0.39121295]
[1731025749354,0.8035,2945.0,2944.4,0.39121295]
[1731025749544,0.8035,2945.0,2943.7,1.74920495]
[1731025749765,0.8035,2945.0,2943.8,0.40121295]
[1731025749964,0.8035,2945.0,2943.8,0.39121295]
[1731025750169,0.8035,2945.0,2943.9,0.39121295]
[1731025750364,0.8035,2945.0,2944.0,0.39121295]
[1731025750680,0.8035,2945.0,2944.1,0.39121295]
[1731025750878,0.8035,2945.0,2944.2,0.39121295]
[1731025751192,0.8035,2945.0,2943.8,0.21114193]
[1731025751193,0.8035,2945.0,2944.3,0.39121295]
[1731025751478,0.8035,2945.0,2943.9,0.39121295]
[1731025751684,0.8035,2945.0,2944.0,0.39121295]
[1731025751860,0.8035,2945.0,2944.1,0.39121295]
[1731025752179,0.8035,2945.0,2944.2,0.39121295]
[1731025752351,0.8035,2945.0,2943.6,3.0]
[1731025752352,0.7735,2944.8,2944.0,0.39121295]
[1731025752553,0.7735,2944.8,2944.1,0.39121295]
[1731025752779,0.7735,2944.8,2943.7,0.39121295]
[1731025753081,3.0,2945.2,2943.3,0.39121295]
[1731025753082,0.7537,2944.2,2943.3,0.39121295]
[1731025753278,0.55,2943.9,2942.7,1.74984095]
[1731025753485,0.7537,2943.8,2942.8,0.39121295]
[1731025753641,0.7537,2943.8,2942.7,1.95611135]
[1731025754043,0.7537,2943.8,2942.7,0.59748335]
[1731025754270,0.7537,2943.8,2942.8,0.38452973]
[1731025754787,0.7537,2943.8,2942.7,0.7537]
[1731025755487,0.7537,2943.8,2942.8,0.06795102]
[1731025755964,0.7537,2943.8,2942.7,0.7637]
[1731025756159,0.8311,2943.6,2942.5,0.41513768]
[1731025756490,0.8311,2943.6,2942.7,0.01]
[1731025756793,0.8311,2943.6,2942.5,4.84524576]
[1731025756952,0.8311,2943.6,2942.6,0.01]
[1731025757379,0.8311,2943.6,2942.6,0.07795376]
[1731025757682,0.8311,2943.6,2942.8,0.02]
[1731025757881,0.8311,2943.6,2943.0,0.01]
[1731025758185,0.8311,2943.6,2943.0,0.07794456]
[1731025758358,0.8311,2943.6,2943.0,0.01]
[1731025759355,0.8311,2943.6,2943.0,0.07794458]
[1731025759550,0.785,2944.3,2943.4,3.02]
[1731025759783,0.785,2944.3,2943.6,0.01]
[1731025759994,0.785,2944.3,2943.7,0.01]
[1731025760294,0.785,2944.3,2943.4,3.0]
[1731025760454,0.785,2944.3,2943.5,0.79452458]
[1731025760797,0.785,2944.3,2943.7,0.01]
[1731025762783,0.785,2944.3,2943.3,4.40075366]
[1731025762784,0.01,2943.5,2942.3,1.35986737]
[1731025762957,0.55,2943.4,2942.3,1.42783978]
[1731025763160,0.7805,2943.5,2942.4,0.30718533]
[1731025764071,0.7805,2943.5,2942.5,0.06796029]
[1731025765697,0.7805,2943.5,2942.4,0.30718533]
[1731025766996,0.7805,2943.5,2942.5,4.05356979]
[1731025767169,0.7805,2943.5,2942.7,0.803]
[1731025767356,0.7805,2943.5,2942.8,0.06794637]
[1731025768060,0.7805,2943.5,2942.7,0.803]
[1731025768288,0.7618,2944.8,2942.7,0.803]
[1731025769485,0.55,2944.7,2942.7,0.803]
[1731025769727,0.7618,2944.6,2942.8,0.42390755]
[1731025769885,0.55,2944.5,2942.8,0.42390755]
[1731025770224,0.7985,2944.4,2942.8,0.42390755]
[1731025771319,0.55,2944.7,2942.8,0.42390755]
[1731025771491,0.7902,2944.2,2942.8,0.42390755]
[1731025772821,0.7902,2944.0,2942.8,0.42390755]
[1731025773020,0.7902,2943.8,2942.5,3.98561598]
[1731025773323,0.7902,2943.8,2942.4,0.30718533]
[1731025773482,0.7902,2943.8,2942.1,4.77251598]
[1731025774088,0.7902,2943.8,2942.2,3.0]
[1731025775280,0.7902,2943.8,2942.3,3.23892006]
[1731025775586,0.7902,2943.8,2942.4,3.0]
[1731025777201,0.55,2943.7,2942.4,3.0]
[1731025777548,0.8293,2943.4,2942.0,3.23892006]
[1731025777836,0.8293,2943.2,2942.0,3.23892006]
[1731025778024,0.8273581,2943.2,2942.0,3.23892006]
[1731025778203,0.55,2943.1,2942.0,0.06796844]
[1731025778634,3.55,2943.3,2941.6,0.827358]
[1731025778839,3.55,2943.3,2941.6,0.40662781]
[1731025779057,2.3845,2942.6,2940.9,1.35986737]
[1731025779215,0.55,2941.5,2939.7,1.71690974]
[1731025779418,3.55,2941.3,2939.9,0.35461853]
[1731025779641,3.55,2941.3,2939.4,3.23892006]
[1731025780447,3.55,2941.0,2938.9,3.45242851]
[1731025780609,3.55,2941.0,2939.2,3.23892006]
[1731025780811,3.55,2941.0,2939.3,0.06802984]
[1731025781227,0.55,2940.6,2939.2,3.23892006]
[1731025781416,0.67889201,2940.9,2938.9,0.21350845]
[1731025781417,0.55,2940.4,2938.9,4.20852961]
[1731025781716,0.8293,2940.5,2939.0,3.0]
[1731025781907,0.8293,2940.5,2939.1,0.06802752]
[1731025782218,0.8293,2940.5,2939.2,0.30680275]
[1731025783430,0.8293,2940.5,2939.7,3.99502116]
[1731025783634,0.8293,2940.5,2939.8,3.06801598]
[1731025784302,0.8293,2940.5,2939.8,3.06801254]
[1731025784501,0.8293,2940.5,2939.8,3.06801477]
[1731025784733,0.8293,2940.5,2939.9,0.70630359]
[1731025789430,0.8293,2940.5,2939.3,4.81212116]
[1731025791033,0.8293,2940.5,2939.4,3.0]
[1731025795328,0.8293,2940.5,2939.5,0.06801554]
[1731025795524,3.0,2941.8,2939.5,0.06801554]
[1731025795525,0.8304,2941.8,2940.2,3.0]
[1731025795723,0.8304,2941.8,2941.0,3.0]
[1731025796140,0.8304,2941.8,2940.5,3.99502116]
[1731025796351,0.8304,2941.8,2940.1,0.7653]
[1731025796352,0.8304,2941.8,2940.2,3.0]
[1731025797315,0.55,2941.7,2940.2,3.0]
[1731025797517,0.55,2941.5,2940.2,3.69950212]
[1731025797718,0.8304,2941.4,2940.2,3.69950212]
[1731025797956,0.01,2942.1,2940.2,3.69950212]
[1731025797957,0.8304,2941.2,2940.2,3.69950212]
[1731025798727,0.8304,2941.2,2940.2,0.69950212]
[1731025798951,0.8304,2941.2,2939.7,3.99502116]
[1731025799533,0.8304,2941.2,2940.1,3.99502116]
[1731025799732,0.8304,2941.2,2940.1,4.78842116]
[1731025800454,0.8304,2941.2,2940.2,3.0]
[1731025800657,0.8304,2941.2,2940.3,0.77884212]
[1731025801759,0.8304,2941.2,2940.6,3.0]
[1731025803855,0.8304,2941.2,2940.7,0.06799797]
[1731025804064,0.8304,2941.2,2941.0,3.0]
[1731025804232,0.7573,2942.5,2941.0,3.0]
[1731025804433,0.7573,2942.3,2941.1,0.76749158]
[1731025804643,0.7573,2942.3,2941.1,0.69950212]
[1731025804969,0.7673,2942.3,2940.1,3.99502116]
[1731025805122,0.7573,2942.0,2940.1,3.99502116]
[1731025805454,0.7573,2942.0,2939.7,3.99502116]
[1731025805634,0.55,2941.7,2939.7,3.99502116]
[1731025805862,0.55,2941.6,2939.7,3.99502116]
[1731025806060,0.7828,2941.5,2939.7,3.99502116]
[1731025806251,0.55,2941.2,2939.7,3.99502116]
[1731025806453,0.55,2941.0,2939.8,0.39950212]
[1731025806951,0.7828,2940.9,2939.8,0.39950212]
[1731025807183,0.7828,2940.9,2939.9,0.50746761]
[1731025807362,0.7828,2940.9,2940.1,3.99502116]
[1731025807571,0.7828,2940.9,2940.2,0.06801184]
[1731025808089,0.7828,2940.9,2940.1,3.99502116]
[1731025808251,0.7828,2940.9,2940.2,3.0]
[1731025808458,4.33292321,2941.8,2940.6,3.0]
[1731025808459,1.3186,2941.7,2940.6,3.0]
[1731025808885,0.55,2941.7,2940.6,3.0]
[1731025809199,0.02,2942.5,2940.1,3.0]
[1731025809200,0.7709,2941.6,2940.1,3.0]
[1731025809752,0.55,2941.5,2940.1,3.0]
[1731025809993,0.7858,2941.4,2940.1,3.0]
[1731025810158,0.7858,2941.4,2940.0,3.99502116]
[1731025810351,0.55,2941.1,2939.2,3.99502116]
[1731025810685,0.7958,2941.2,2938.9,0.21350845]
[1731025810686,0.55,2940.7,2938.9,0.21350845]
[1731025810886,0.55,2940.5,2939.0,0.50312296]
[1731025811074,0.8071,2940.4,2939.0,0.50312296]
[1731025811457,0.8071,2940.4,2939.1,0.06803539]
[1731025811690,0.8071,2940.4,2939.2,3.99502116]
[1731025811864,0.8071,2940.4,2939.7,3.0]
[1731025812096,0.80493361,2940.4,2939.7,3.0]
[1731025813187,0.80493361,2940.4,2939.2,4.45163911]
[1731025813393,0.80493361,2940.4,2939.2,3.99502116]
[1731025813594,0.80493361,2940.4,2938.9,0.21350845]
[1731025813967,0.80493361,2940.4,2939.0,0.06803671]
[1731025814174,0.80493361,2940.4,2938.9,0.21350845]
[1731025814390,0.80493361,2940.4,2939.0,0.42085296]
[1731025814905,0.80493361,2940.4,2938.9,0.21350845]
[1731025815073,0.8219,2940.2,2938.9,0.21350845]
[1731025816390,0.7986,2940.0,2938.9,0.21350845]
[1731025816866,0.55,2939.9,2938.9,0.21350845]
[1731025817062,0.7986,2939.8,2938.9,0.21350845]
[1731025818196,0.7986,2939.8,2939.0,0.06803971]
[1731025818960,0.7986,2939.8,2938.9,3.63436141]
[1731025819368,0.7986,2939.8,2939.0,0.06803345]
[1731025819558,0.7986,2939.8,2939.2,3.99502116]
[1731025819899,2.0,2940.4,2939.7,3.0]
[1731025819900,0.7539,2940.3,2939.7,3.0]
[1731025820601,2.0,2940.4,2939.7,3.0]
[1731025820913,2.0,2940.4,2940.2,1.3555]
[1731025821100,2.0,2940.4,2940.3,4.35472343]
[1731025821299,0.7525,2942.0,2941.4,3.0]
[1731025821461,0.7525,2942.0,2941.5,0.69950212]
[1731025821666,0.7525,2942.0,2941.8,3.0]
[1731025821864,0.7525,2943.6,2941.8,3.06797449]
[1731025822067,0.7525,2943.6,2942.2,3.0]
[1731025822903,0.7525,2943.6,2942.3,0.06795863]
[1731025823790,0.7525,2943.6,2942.2,3.0]
[1731025824477,0.7525,2943.6,2942.3,0.32554129]
[1731025824674,0.7525,2943.6,2942.2,3.0]
[1731025825075,0.55,2943.5,2942.2,3.0]
[1731025825276,0.8012,2943.4,2942.2,3.0]
[1731025825487,0.8012,2943.4,2941.8,0.32554129]
[1731025825488,0.8012,2943.4,2941.8,3.32554129]
[1731025825712,0.8012,2943.4,2941.8,4.10665034]
[1731025825989,0.8012,2943.4,2941.8,3.78110905]
[1731025827114,0.8012,2943.4,2942.2,4.48554917]
[1731025827296,0.8012,2943.4,2942.4,0.55]
[1731025829701,0.8012,2943.4,2942.7,3.0]
[1731025831168,0.8012,2943.4,2942.7,3.74855492]
[1731025833784,0.8273,2944.3,2943.1,3.805]
[1731025833984,0.8273,2944.3,2943.5,3.0]
[1731025834193,7.25,2945.9,2943.9,3.0]
[1731025834400,0.01,2946.1,2943.9,3.0]
[1731025834401,0.8273,2945.7,2943.9,3.0]
[1731025834619,0.8273,2945.7,2943.9,3.43626271]
[1731025834788,0.8273,2945.7,2944.0,0.43626271]
[1731025835516,0.8273,2945.7,2943.9,3.0]
[1731025836005,0.8273,2945.7,2943.2,0.43626271]
[1731025836006,0.01,2945.6,2943.5,3.0]
[1731025836316,0.8195,2945.6,2943.5,3.0]
[1731025836519,0.55,2945.3,2943.5,3.0]
[1731025836874,0.8095,2945.0,2943.5,3.0]
[1731025838082,0.7901,2944.8,2943.0,4.48554917]
[1731025838376,0.55,2944.7,2943.0,4.48554917]
[1731025838610,0.7718,2944.8,2943.0,4.93410409]
[1731025838976,0.7718,2944.6,2943.0,4.93410409]
[1731025839178,0.7718,2944.6,2943.1,3.06794034]
[1731025839531,0.7718,2944.6,2943.5,3.0]
[1731025843787,0.7718,2944.6,2942.9,0.816]
[1731025843982,0.7718,2944.6,2942.6,4.48554917]
[1731025844981,0.7942,2944.4,2942.6,4.48554917]
[1731025845188,0.7942,2944.4,2942.6,5.01570409]
[1731025846101,0.7942,2944.4,2942.7,3.0]
[1731025846336,0.7942,2944.4,2943.0,4.48554917]
[1731025846540,0.55,2944.1,2942.7,3.0]
[1731025846821,0.7902,2943.8,2942.2,4.48554917]
[1731025847132,0.7902,2943.4,2941.8,5.26665822]
[1731025847342,0.7902,2943.4,2941.8,3.98774609]
[1731025848303,0.7902,2943.4,2941.7,0.7902]
[1731025848304,0.7902,2943.4,2942.2,3.98774609]
[1731025848510,0.7902,2943.4,2942.2,4.3865207]
[1731025848939,0.7902,2943.4,2942.3,3.0]
[1731025849116,0.7902,2943.4,2942.4,0.06796107]
[1731025849318,0.7902,2943.4,2942.3,3.0]
[1731025850118,0.7902,2943.4,2942.4,0.24408077]
[1731025850318,0.7902,2943.4,2942.5,0.24408077]
[1731025850519,0.7902,2943.4,2942.6,0.24408077]
[1731025850702,0.7902,2943.4,2942.7,0.24408077]
[1731025850907,0.7902,2943.4,2942.8,0.24454937]
[1731025851120,0.7902,2943.4,2942.9,0.24454937]
[1731025851318,0.7902,2943.4,2943.0,0.24454937]
[1731025851547,0.7902,2943.4,2943.1,0.24454937]
[1731025851721,0.7902,2943.4,2942.3,3.81839207]